bitfinex/quotes_SOLUSD_20250917
["timestamp","ask_amount","ask_price","bid_price","bid_amount"]
[1758120510541,3.07789201,234.69,234.63,11.32314261]
[1758120510722,33.14,234.7,234.61,10.65590677]
[1758120510723,2.40789201,234.66,234.62,4.26221123]
[1758120510922,36.19789201,234.66,234.62,4.26221123]
[1758120511141,35.52789201,234.66,234.62,4.93221123]
[1758120512452,0.67,234.65,234.62,4.26221123]
[1758120512827,35.52789201,234.66,234.62,4.26221123]
[1758120513026,35.52789201,234.66,234.62,4.93221123]
[1758120513646,36.19789201,234.66,234.62,4.93221123]
[1758120513852,36.19789201,234.66,234.62,0.67]
[1758120514052,36.19789201,234.66,234.6,4.97257459]
[1758120514558,35.52789201,234.66,234.61,0.71]
[1758120514738,35.52789201,234.66,234.62,0.71]
[1758120515044,35.52789201,234.66,234.62,0.77]
[1758120515556,0.66,234.71,234.63,3.11789201]
[1758120515745,2.40789201,234.68,234.64,4.26184793]
[1758120516053,3.06789201,234.68,234.64,4.26184793]
[1758120516931,2.40789201,234.67,234.62,4.32215041]
[1758120517138,33.12,234.66,234.62,5.03215041]
[1758120517957,33.12,234.66,234.63,0.71]
[1758120518162,33.12,234.66,234.62,0.06]
[1758120518328,2.40789201,234.64,234.62,0.06]
[1758120518532,2.40789201,234.63,234.62,0.06]
[1758120518751,3.06789201,234.63,234.62,0.06]
[1758120519139,0.66,234.65,234.62,0.06]
[1758120519456,2.40789201,234.64,234.62,0.06]
[1758120519761,3.06789201,234.64,234.62,0.06]
[1758120520259,0.66,234.63,234.62,0.06]
[1758120520955,3.06789201,234.63,234.62,0.06]
[1758120522135,2.40789201,234.64,234.62,0.06]
[1758120522664,2.40789201,234.65,234.62,0.06]
[1758120523158,33.78,234.66,234.62,4.32219802]
[1758120523354,33.78,234.66,234.62,5.03219802]
[1758120523537,0.66,234.66,234.62,4.32219802]
[1758120523735,33.78,234.65,234.62,4.32219802]
[1758120523940,33.78,234.65,234.62,0.06]
[1758120524144,36.18789201,234.65,234.62,0.06]
[1758120524456,33.12,234.65,234.62,4.32216543]
[1758120524643,33.78,234.65,234.62,4.32216543]
[1758120525134,36.18789201,234.65,234.62,4.32216543]
[1758120525333,36.18789201,234.65,234.62,0.06]
[1758120525941,33.12,234.65,234.62,4.32212012]
[1758120526141,33.12,234.65,234.62,5.03212012]
[1758120526352,33.12,234.65,234.62,4.32212012]
[1758120526549,0.66,234.65,234.62,4.32212012]
[1758120526865,33.12,234.64,234.62,4.32212012]
[1758120527356,33.12,234.64,234.62,5.03212012]
[1758120527831,33.12,234.64,234.62,4.32212012]
[1758120529455,33.12,234.64,234.62,0.06]
[1758120530149,2.20034467,234.63,234.62,0.06]
[1758120530661,0.66,234.63,234.62,0.06]
[1758120530859,2.20034467,234.63,234.62,0.06]
[1758120531455,9.29810059,234.63,234.62,0.06]
[1758120534860,39.29810059,234.63,234.62,0.06]
[1758120542452,52.8936946,234.63,234.62,0.06]
[1758120542664,57.52061708,234.63,234.62,0.06]
[1758120543372,53.96052414,234.63,234.62,0.06]
[1758120543877,68.17569102,234.63,234.59,0.06]
[1758120544178,15.13593868,234.6,234.59,0.06]
[1758120544372,48.23593868,234.6,234.59,0.06]
[1758120544581,56.00423962,234.6,234.59,0.06]
[1758120544948,86.00423962,234.6,234.59,0.06]
[1758120547584,81.74166503,234.6,234.59,0.06]
[1758120548082,86.00423962,234.6,234.59,0.06]
[1758120550277,13.59559401,234.59,234.57,0.06]
[1758120550481,41.73900903,234.58,234.57,0.06]
[1758120550691,56.00460304,234.58,234.57,0.06]
[1758120551487,84.46425837,234.58,234.57,0.06]
[1758120551667,86.00460304,234.58,234.57,0.06]
[1758120556299,13.59559401,234.57,234.56,0.2]
[1758120556462,47.97166503,234.57,234.56,0.2]
[1758120556662,48.64166503,234.57,234.56,0.2]
[1758120557569,65.70478478,234.57,234.56,0.2]
[1758120558089,65.70478478,234.57,234.54,0.06]
[1758120558090,1.54034467,234.55,234.54,0.06]
[1758120558396,84.59982802,234.55,234.54,0.06]
[1758120558686,100.35240992,234.55,234.54,1e-08]
[1758120558997,26.39559401,234.54,234.46,0.68]
[1758120559178,1.54034467,234.47,234.46,0.68]
[1758120559365,33.1,234.47,234.4,4.26606009]
[1758120559566,1.54034467,234.43,234.29,24.71111372]
[1758120559784,34.64034467,234.42,234.3,17.86362644]
[1758120559999,34.62034467,234.41,234.35,1.54034467]
[1758120560174,33.1,234.4,234.36,0.68]
[1758120560376,33.1,234.39,234.36,0.68]
[1758120560582,4.26530177,234.45,234.36,2.22034467]
[1758120560781,33.08,234.44,234.37,2.22034467]
[1758120560974,17.86035006,234.48,234.38,0.68]
[1758120561174,35.91855787,234.47,234.38,0.68]
[1758120561383,2.81855787,234.46,234.38,0.68]
[1758120561702,33.1,234.45,234.38,0.68]
[1758120561997,33.1,234.45,234.39,4.26639361]
[1758120562197,37.3653282,234.45,234.4,0.68]
[1758120562773,33.1,234.45,234.4,0.68]
[1758120563876,33.1,234.45,234.4,4.94620119]
[1758120564076,37.36531563,234.45,234.41,0.68]
[1758120564279,33.1,234.45,234.42,0.68]
[1758120564477,33.1,234.45,234.4,4.26620119]
[1758120564684,33.1,234.45,234.41,0.68]
[1758120564901,2.8168605,234.44,234.41,0.68]
[1758120565277,2.8168605,234.44,234.37,4.26675769]
[1758120565484,2.8168605,234.44,234.38,0.68]
[1758120566121,2.8168605,234.44,234.42,0.06]
[1758120566304,7.08237224,234.44,234.42,0.06]
[1758120566481,2.8168605,234.44,234.42,0.06]
[1758120566810,2.8168605,234.44,234.43,0.68]
[1758120567197,3.4868605,234.44,234.42,0.06]
[1758120567398,1.54034467,234.43,234.42,0.06]
[1758120569390,6.47601032,234.43,234.42,0.06]
[1758120570209,5.80601032,234.43,234.42,0.06]
[1758120571388,35.80601032,234.43,234.42,0.06]
[1758120571696,38.62287082,234.43,234.42,0.06]
[1758120573102,71.72287082,234.43,234.42,0.06]
[1758120575820,71.70287082,234.43,234.42,0.06]
[1758120577196,72.40287082,234.43,234.42,0.06]
[1758120577609,71.70287082,234.43,234.42,0.06]
[1758120577901,42.40287082,234.43,234.42,0.06]
[1758120578323,41.70287082,234.43,234.42,0.06]
[1758120579311,42.40287082,234.43,234.42,0.06]
[1758120579525,9.32287082,234.43,234.42,0.06]
[1758120579712,26.39559401,234.42,234.31,0.71]
[1758120580026,1.54034467,234.32,234.31,0.71]
[1758120580536,34.62034467,234.32,234.31,0.71]
[1758120580828,37.43720517,234.32,234.31,0.71]
[1758120581211,37.43720517,234.32,234.29,0.71]
[1758120581525,1.54034467,234.3,234.29,0.71]
[1758120581734,34.62034467,234.3,234.29,0.71]
[1758120581922,37.43720517,234.3,234.29,0.71]
[1758120582224,35.8968605,234.3,234.26,0.71]
[1758120582425,1.54034467,234.28,234.22,4.26944737]
[1758120582624,1.54034467,234.28,234.27,0.71]
[1758120582801,2.8168605,234.31,234.27,0.71]
[1758120583128,1.54034467,234.33,234.27,0.71]
[1758120583422,4.35720517,234.33,234.28,4.26839679]
[1758120583624,33.08,234.32,234.29,0.71]
[1758120584203,1.54034467,234.33,234.29,0.71]
[1758120584407,4.35548338,234.33,234.3,0.71]
[1758120584607,1.54034467,234.32,234.26,4.26859143]
[1758120584818,33.08,234.31,234.27,0.71]
[1758120585513,34.62034467,234.31,234.27,0.71]
[1758120586211,34.62034467,234.31,234.27,4.97856198]
[1758120586530,34.62034467,234.31,234.28,0.71]
[1758120586826,1.54034467,234.31,234.29,0.71]
[1758120587025,33.08,234.3,234.29,0.71]
[1758120587232,33.08,234.3,234.29,4.9782146]
[1758120587414,33.08,234.3,234.29,0.71]
[1758120587728,33.08,234.3,234.29,4.9782146]
[1758120587926,1.54034467,234.33,234.29,4.9782146]
[1758120588112,33.08,234.32,234.3,0.71]
[1758120588312,4.26683473,234.37,234.3,0.71]
[1758120588313,33.08,234.31,234.3,0.71]
[1758120590036,33.08,234.31,234.3,4.97803243]
[1758120590423,33.08,234.31,234.3,4.26803243]
[1758120590626,33.08,234.31,234.3,4.97803243]
[1758120591418,2.41321888,234.35,234.3,4.97803243]
[1758120591620,33.08,234.34,234.31,0.71]
[1758120591946,5.22854114,234.33,234.31,0.71]
[1758120592445,3.11321888,234.32,234.26,4.26862854]
[1758120592752,2.41321888,234.27,234.22,0.77]
[1758120592925,0.7,234.29,234.23,0.71]
[1758120593237,2.41321888,234.27,234.23,0.71]
[1758120593436,5.22854114,234.27,234.24,0.71]
[1758120593610,5.22854114,234.27,234.23,4.26930079]
[1758120593814,2.41321888,234.26,234.22,0.06]
[1758120594013,33.08,234.25,234.24,0.71]
[1758120594262,35.49321888,234.25,234.22,0.06]
[1758120594440,2.41321888,234.24,234.22,0.06]
[1758120594620,2.41321888,234.24,234.22,0.77]
[1758120594815,33.08,234.25,234.23,0.71]
[1758120595138,33.08,234.25,234.22,0.06]
[1758120595139,35.49321888,234.25,234.22,0.06]
[1758120595325,2.41321888,234.24,234.22,0.77]
[1758120595824,35.49321888,234.25,234.22,0.77]
[1758120596336,2.41321888,234.24,234.22,0.06]
[1758120597036,2.41321888,234.23,234.22,0.06]
[1758120597420,33.08,234.23,234.22,0.06]
[1758120598822,2.41321888,234.24,234.22,0.06]
[1758120599020,33.08,234.23,234.22,0.06]
[1758120600238,39.76252682,234.23,234.22,0.06]
[1758120600545,43.2605892,234.23,234.22,0.06]
[1758120601762,56.85618321,234.23,234.22,0.06]
[1758120602156,2.81806238,234.23,234.22,0.06]
[1758120602329,33.08,234.23,234.22,5.03949022]
[1758120602647,35.89806238,234.23,234.22,0.77]
[1758120602822,35.89806238,234.23,234.22,0.06]
[1758120603358,2.81806238,234.23,234.22,0.06]
[1758120603648,33.08,234.23,234.22,0.77]
[1758120603947,35.89806238,234.23,234.22,0.06]
[1758120604151,38.31128126,234.23,234.22,0.06]
[1758120604448,38.98128126,234.23,234.22,0.06]
[1758120604629,43.2505892,234.23,234.22,0.06]
[1758120605419,38.31128126,234.23,234.22,0.06]
[1758120607449,5.23128126,234.23,234.22,0.06]
[1758120607631,33.08,234.23,234.22,0.06]
[1758120607829,35.89806238,234.23,234.22,0.06]
[1758120608849,2.41321888,234.28,234.22,5.03949022]
[1758120609052,2.81385589,234.27,234.22,6.74263063]
[1758120609272,5.22707477,234.28,234.23,0.71]
[1758120609551,33.08,234.27,234.24,0.71]
[1758120609761,2.81385589,234.26,234.25,0.71]
[1758120609942,2.81418226,234.26,234.25,0.71]
[1758120610137,33.08,234.26,234.25,0.71]
[1758120610456,35.89418226,234.26,234.25,4.97894343]
[1758120610629,33.08,234.27,234.25,7.39216231]
[1758120610953,2.41321888,234.31,234.26,0.71]
[1758120611151,2.81510928,234.3,234.27,0.71]
[1758120611356,33.08,234.3,234.28,0.71]
[1758120611652,2.81510928,234.29,234.27,2.41321888]
[1758120611956,4.72829216,234.39,234.25,14.94130202]
[1758120611957,2.81510928,234.34,234.25,14.94130202]
[1758120612253,33.08,234.33,234.26,0.71]
[1758120612431,33.08,234.33,234.27,14.94002646]
[1758120612832,33.08,234.33,234.28,0.71]
[1758120613034,0.03,234.39,234.32,2.41321888]
[1758120613357,33.08,234.38,234.33,0.71]
[1758120613658,2.81921844,234.37,234.34,0.71]
[1758120613828,33.08,234.37,234.34,0.71]
[1758120614033,2.81921844,234.36,234.35,0.71]
[1758120614263,33.08,234.36,234.35,0.71]
[1758120614460,33.08,234.36,234.35,4.97712182]
[1758120615154,33.08,234.36,234.35,0.71]
[1758120615538,0.03,234.39,234.35,7.3903407]
[1758120615736,0.03,234.39,234.38,2.41321888]
[1758120616250,0.03,234.39,234.38,3.12321888]
[1758120616451,0.03,234.39,234.38,7.38979452]
[1758120618252,0.03,234.39,234.35,7.39018869]
[1758120618441,0.03,234.39,234.36,4.97679976]
[1758120618850,0.03,234.39,234.37,0.71]
[1758120619254,0.03,234.39,234.38,0.71]
[1758120621576,0.03,234.39,234.34,3.12321888]
[1758120621774,0.03,234.39,234.36,0.71]
[1758120622769,0.03,234.39,234.37,0.71]
[1758120623275,0.03,234.39,234.36,4.26693878]
[1758120623276,0.03,234.39,234.38,0.71]
[1758120623458,0.03,234.39,234.38,3.12321888]
[1758120623662,0.03,234.39,234.38,0.71]
[1758120624187,0.03,234.39,234.38,3.12321888]
[1758120624681,0.03,234.39,234.38,7.38979452]
[1758120625466,0.03,234.39,234.36,0.71]
[1758120625656,0.7,234.39,234.38,0.06]
[1758120625852,0.03,234.39,234.38,0.06]
[1758120626053,3.11321888,234.39,234.38,0.06]
[1758120626879,7.37961249,234.39,234.38,0.06]
[1758120627452,3.11321888,234.39,234.38,0.06]
[1758120628567,7.37961249,234.39,234.38,0.06]
[1758120629953,4.96639361,234.39,234.38,0.06]
[1758120630151,7.37961249,234.39,234.38,0.06]
[1758120631184,4.96639361,234.39,234.38,0.06]
[1758120631486,7.37961249,234.39,234.38,0.06]
[1758120632385,37.37961249,234.39,234.38,0.06]
[1758120632576,40.19935883,234.39,234.38,0.06]
[1758120633873,73.25935883,234.39,234.38,0.06]
[1758120634490,70.43961249,234.39,234.38,0.06]
[1758120634656,37.37961249,234.39,234.38,0.06]
[1758120634977,70.47961249,234.39,234.38,0.06]
[1758120635355,40.47961249,234.39,234.38,0.06]
[1758120635575,36.21321888,234.39,234.38,0.06]
[1758120636093,33.8,234.39,234.38,0.06]
[1758120636793,38.06639361,234.39,234.38,0.06]
[1758120636982,40.47961249,234.39,234.38,0.06]
[1758120637187,43.29734634,234.39,234.38,0.06]
[1758120637989,73.29734634,234.39,234.38,0.06]
[1758120639075,86.89294035,234.39,234.38,0.06]
[1758120639997,65.90773385,234.39,234.38,0.06]
[1758120640172,30.03,234.39,234.38,3.17321888]
[1758120640569,33.09,234.39,234.38,3.17321888]
[1758120640780,0.03,234.39,234.38,3.17321888]
[1758120641000,33.09,234.39,234.38,3.17321888]
[1758120641199,33.09,234.39,234.38,0.76]
[1758120641404,33.09,234.39,234.38,3.17321888]
[1758120641690,33.09,234.39,234.38,0.76]
[1758120641894,33.09,234.39,234.38,3.17321888]
[1758120642193,0.03,234.39,234.38,3.17321888]
[1758120642403,33.09,234.39,234.38,0.76]
[1758120643302,33.09,234.39,234.38,0.06]
[1758120643601,0.03,234.39,234.38,0.06]
[1758120643901,33.09,234.39,234.38,0.06]
[1758120644673,4.29639361,234.39,234.38,0.06]
[1758120644874,37.35639361,234.39,234.38,0.06]
[1758120645081,40.1753064,234.39,234.38,0.06]
[1758120646294,42.58852528,234.39,234.38,0.06]
[1758120646476,43.29852528,234.39,234.38,0.06]
[1758120646881,35.90891279,234.39,234.38,0.06]
[1758120647198,32.84891279,234.39,234.38,0.76]
[1758120647396,63.09,234.39,234.38,0.76]
[1758120647695,33.09,234.39,234.38,0.76]
[1758120648704,33.09,234.39,234.38,5.02657564]
[1758120649197,33.09,234.39,234.38,0.76]
[1758120649598,33.09,234.39,234.38,5.02657564]
[1758120650089,0.03,234.39,234.38,0.76]
[1758120650285,33.09,234.39,234.38,0.76]
[1758120650488,33.09,234.39,234.38,5.02657564]
[1758120650693,33.09,234.39,234.38,0.76]
[1758120651396,33.09,234.39,234.38,0.06]
[1758120651597,35.9176829,234.39,234.38,0.06]
[1758120651811,38.17164293,234.39,234.38,0.06]
[1758120651992,37.46164293,234.39,234.38,0.06]
[1758120652307,42.43803654,234.39,234.38,0.06]
[1758120652500,75.96175566,234.39,234.38,0.06]
[1758120653306,72.43803654,234.39,234.38,0.06]
[1758120653496,72.43803654,234.39,234.35,0.06]
[1758120653693,1.54396003,234.36,234.35,0.06]
[1758120654007,37.41164293,234.36,234.35,0.06]
[1758120654592,71.67858268,234.36,234.35,0.06]
[1758120655711,72.38858268,234.36,234.35,0.06]
[1758120656006,75.92964083,234.36,234.35,0.06]
[1758120656403,84.12396098,234.36,234.27,0.7]
[1758120656607,1.54396003,234.28,234.24,0.7]
[1758120656914,1.54396003,234.26,234.25,0.7]
[1758120657094,33.04,234.26,234.25,0.7]
[1758120658197,33.04,234.26,234.25,4.96894343]
[1758120660198,33.06,234.27,234.25,15.64130202]
[1758120660398,33.06,234.27,234.26,0.7]
[1758120660599,33.06,234.27,234.24,0.7]
[1758120660600,35.89375239,234.27,234.24,0.7]
[1758120660830,35.89375239,234.27,234.25,0.7]
[1758120660831,34.60396003,234.27,234.25,0.7]
[1758120661320,2.83342975,234.26,234.25,0.7]
[1758120661518,2.83342975,234.26,234.22,0.7]
[1758120661725,2.83342975,234.26,234.23,0.7]
[1758120661921,34.37738978,234.26,234.23,4.26917237]
[1758120662114,31.54396003,234.26,234.23,4.26917237]
[1758120662417,31.54396003,234.26,234.21,0.7]
[1758120662418,2.83206571,234.25,234.22,4.26948961]
[1758120662589,33.06,234.24,234.22,4.26948961]
[1758120663309,33.06,234.24,234.22,4.96948961]
[1758120663512,1.54396003,234.23,234.19,0.7]
[1758120663713,1.54396003,234.23,234.17,1.54396003]
[1758120663714,30.0,234.22,234.2,0.7]
[1758120664022,33.06,234.21,234.19,4.27003565]
[1758120664500,33.06,234.21,234.2,0.65]
[1758120664816,63.06,234.21,234.2,0.65]
[1758120665403,63.06,234.21,234.2,0.71]
[1758120665609,63.06,234.21,234.2,0.06]
[1758120666225,64.60396003,234.21,234.2,0.06]
[1758120669037,31.54396003,234.21,234.2,0.06]
[1758120669243,64.60396003,234.21,234.2,0.06]
[1758120669443,63.06,234.21,234.2,4.97985482]
[1758120670036,63.06,234.21,234.2,4.32985482]
[1758120670336,30.0,234.21,234.2,4.97985482]
[1758120670516,63.06,234.21,234.2,4.97985482]
[1758120672038,64.60396003,234.21,234.2,0.06]
[1758120672230,63.06,234.21,234.2,0.06]
[1758120673648,63.06,234.21,234.2,4.32985482]
[1758120673945,63.06,234.21,234.2,0.06]
[1758120674309,63.06,234.21,234.2,4.32985482]
[1758120674722,63.06,234.21,234.2,0.06]
[1758120676028,63.06,234.21,234.2,4.32985482]
[1758120676429,63.06,234.21,234.2,0.06]
[1758120676623,64.60396003,234.21,234.2,0.06]
[1758120676854,65.29396003,234.21,234.2,0.06]
[1758120677518,13.59559401,234.2,234.07,10.67763085]
[1758120677719,1.54396003,234.08,234.07,10.67763085]
[1758120677938,35.47396003,234.08,234.07,10.67763085]
[1758120678113,35.47396003,234.08,234.0,0.6928]
[1758120678324,1.54396003,234.03,234.0,4.96629361]
[1758120678545,33.36,234.02,234.01,4.92332165]
[1758120678731,33.34,234.02,234.01,0.65]
[1758120679156,33.34,234.02,234.01,4.92332165]
[1758120679319,33.34,234.02,234.0,0.0428]
[1758120679519,1.54396003,234.01,234.0,0.0428]
[1758120680042,34.88396003,234.02,234.0,0.0428]
[1758120680341,30.0,234.01,234.0,4.31629445]
[1758120680543,30.0,234.01,234.0,0.0428]
[1758120681627,30.0,234.01,234.0,2.23676003]
[1758120681628,63.34,234.01,234.0,2.23676003]
[1758120682642,63.34,234.01,234.0,6.5102643]
[1758120682822,63.34,234.01,234.0,6.5702643]
[1758120683345,30.0,234.01,234.0,5.02630427]
[1758120684045,30.0,234.01,234.0,4.37630427]
[1758120684251,30.0,234.01,234.0,0.1028]
[1758120684546,30.0,234.01,234.0,0.7528]
[1758120684728,30.0,234.01,234.0,0.1028]
[1758120685245,31.54396003,234.01,234.0,0.1028]
[1758120686149,30.0,234.01,234.0,0.1028]
[1758120687154,32.13396003,234.01,234.0,0.1028]
[1758120687459,31.54396003,234.01,234.0,0.1028]
[1758120687633,30.0,234.01,234.0,0.1028]
[1758120688178,63.34,234.01,234.0,0.1028]
[1758120688555,30.0,234.01,234.0,4.37630427]
[1758120688958,63.34,234.01,234.0,4.37630427]
[1758120689159,63.34,234.01,234.0,0.7528]
[1758120689358,63.34,234.01,234.0,0.1028]
[1758120690160,63.34,234.01,234.0,5.02630427]
[1758120690780,30.0,234.01,234.0,5.02630427]
[1758120690983,63.34,234.01,234.0,5.02630427]
[1758120691689,63.34,234.01,234.0,0.7528]
[1758120692156,63.34,234.01,234.0,5.02630427]
[1758120692783,63.34,234.01,234.0,4.37630427]
[1758120694058,63.34,234.01,234.0,0.1028]
[1758120694685,63.32,234.01,234.0,5.03630427]
[1758120695553,30.0,234.01,234.0,6.5802643]
[1758120695764,63.32,234.01,234.0,6.5802643]
[1758120696390,30.0,234.01,234.0,6.5802643]
[1758120697063,30.0,234.01,234.0,20.17585831]
[1758120697691,30.0,234.01,234.0,5.03630427]
[1758120698702,30.0,234.01,234.0,6.5802643]
[1758120699188,63.32,234.01,234.0,0.1028]
[1758120700374,64.86396003,234.01,234.0,0.1028]
[1758120700779,63.32,234.01,234.0,0.1028]
[1758120701176,63.3,234.01,234.0,4.37630427]
[1758120702294,63.32,234.01,234.0,4.37630427]
[1758120702692,63.32,234.01,234.0,0.1028]
[1758120703011,30.0,234.01,234.0,4.37630427]
[1758120703301,30.0,234.01,234.0,6.5802643]
[1758120704382,30.0,234.01,234.0,20.17585831]
[1758120706607,30.0,234.01,234.0,6.5802643]
[1758120707298,30.0,234.01,234.0,5.03630427]
[1758120707605,30.0,234.01,234.0,0.1028]
[1758120708280,33.28,234.02,234.0,0.1028]
[1758120708710,33.28,234.02,234.0,4.37629711]
[1758120709012,33.28,234.02,234.0,0.1028]
[1758120710707,26.39559401,234.0,233.79,0.66]
[1758120710906,1.54396003,233.87,233.79,2.20396003]
[1758120711214,2.80992971,233.94,233.72,14.97518397]
[1758120711413,4.27501593,233.92,233.84,5.82035328]
[1758120711582,35.36396003,233.91,233.84,5.82035328]
[1758120711778,0.49,233.96,233.87,2.42231665]
[1758120711984,26.68231665,233.95,233.88,2.42231665]
[1758120712200,26.68231665,233.95,233.84,4.27639325]
[1758120712201,24.26,233.95,233.84,4.27639325]
[1758120712401,2.42231665,233.92,233.85,2.42231665]
[1758120712601,33.82,233.91,233.85,2.42231665]
[1758120713281,33.82,233.91,233.84,4.93639325]
[1758120713489,33.82,233.91,233.87,4.27587976]
[1758120713706,33.82,233.9,233.87,6.69819641]
[1758120713909,33.82,233.9,233.88,2.42231665]
[1758120714322,0.49,233.95,233.89,2.42231665]
[1758120714612,3.51091166,234.0,233.94,2.42231665]
[1758120714613,33.82,233.97,233.94,2.42231665]
[1758120714811,33.82,233.97,233.9,0.66]
[1758120714812,33.82,233.97,233.93,2.42231665]
[1758120715124,34.31,233.97,233.91,2.42231665]
[1758120715621,0.49,234.01,233.96,2.42231665]
[1758120715910,34.33,234.0,233.96,2.42231665]
[1758120716220,33.84,233.99,233.96,2.42231665]
[1758120716388,0.49,234.03,233.97,2.42231665]
[1758120716591,28.7,234.02,233.99,2.42231665]
[1758120716888,33.84,234.02,234.0,2.42231665]
[1758120717308,33.84,234.02,234.01,2.42231665]
[1758120717496,33.84,234.02,234.01,4.27332165]
[1758120717707,33.84,234.02,234.01,6.6956383]
[1758120718391,33.84,234.02,234.0,2.42231665]
[1758120718582,33.84,234.02,233.99,4.27357794]
[1758120718782,33.84,234.02,233.97,4.96389207]
[1758120718986,33.84,234.02,233.97,6.69620872]
[1758120719213,2.82183456,234.01,233.98,3.11231665]
[1758120719421,2.82183456,234.01,233.97,6.69620872]
[1758120719615,2.82183456,234.01,233.95,10.68589586]
[1758120719616,2.91231665,234.0,233.95,4.2743205]
[1758120719794,0.49,233.99,233.93,7.38691973]
[1758120719989,33.82,233.98,233.93,4.27460308]
[1758120720313,2.82407554,233.97,233.93,4.96460308]
[1758120720498,2.82407554,233.97,233.93,4.27460308]
[1758120720701,2.82407554,233.97,233.93,4.96460308]
[1758120720999,2.82407554,233.97,233.93,7.38691973]
[1758120721205,2.82407554,233.96,233.94,3.11231665]
[1758120721405,3.51091166,234.05,233.95,3.11231665]
[1758120721606,36.66907086,234.04,234.02,2.42231665]
[1758120721805,2.82907086,234.03,234.0,0.06]
[1758120722106,0.52,234.1,234.0,0.06]
[1758120722107,19.98,234.05,234.0,0.06]
[1758120722307,2.82935211,234.04,234.01,0.69]
[1758120722611,2.82935211,234.03,234.0,0.06]
[1758120722787,2.82935211,234.02,234.0,0.06]
[1758120722991,20.47,234.06,234.0,2.48231665]
[1758120723183,2.83135638,234.05,234.0,2.48231665]
[1758120723388,2.83135638,234.04,234.0,2.48231665]
[1758120723615,2.83135638,234.03,234.01,7.3856383]
[1758120723799,2.83135638,234.02,234.01,10.04871211]
[1758120724318,2.83135638,234.02,234.0,0.06]
[1758120724492,2.83135638,234.01,234.0,4.33350427]
[1758120724692,2.83135638,234.05,234.0,0.06]
[1758120724895,2.83135638,234.04,234.0,4.33348536]
[1758120725110,19.98,234.06,234.0,4.33348536]
[1758120725111,2.83135638,234.03,234.0,5.04348536]
[1758120725309,2.83135638,234.02,234.0,0.77]
[1758120725611,2.83135638,234.01,234.0,5.04350427]
[1758120725841,2.83135638,234.05,234.0,5.04350427]
[1758120726043,2.83135638,234.04,234.01,5.77539046]
[1758120726249,2.83135638,234.03,234.0,5.04350427]
[1758120726422,2.83135638,234.02,234.0,5.04350427]
[1758120726623,2.83135638,234.05,234.0,5.04350427]
[1758120726823,2.83135638,234.04,234.0,5.04350427]
[1758120727023,2.83135638,234.03,234.0,5.04350427]
[1758120727228,2.83135638,234.02,234.0,5.04350427]
[1758120727438,2.83135638,234.05,234.0,5.04350427]
[1758120727647,2.83135638,234.04,234.0,5.04350427]
[1758120727836,2.83135638,234.03,234.0,5.04350427]
[1758120728034,2.83135638,234.02,234.0,5.04350427]
[1758120728343,2.83135638,234.05,234.0,5.04350427]
[1758120728543,2.83135638,234.04,234.0,5.04350427]
[1758120728751,19.98,234.06,234.0,5.04350427]
[1758120728752,2.83135638,234.05,234.01,6.48539046]
[1758120728952,2.83135638,234.05,234.02,6.48539046]
[1758120729550,2.83135638,234.05,234.04,4.27277388]
[1758120729947,2.83135638,234.05,234.04,10.75816434]
[1758120730151,19.98,234.06,234.04,4.98277388]
[1758120730534,0.03,234.1,234.05,6.48539046]
[1758120730838,0.03,234.1,234.07,5.77539046]